[Event "*** Titled Tuesday Blitz"]
[Site "Chess.com"]
[Date "2020.11.10"]
[Round "9"]
[White "davigator"]
[Black "Shushik"]
[Result "0-1"]
[WhiteElo "2353"]
[BlackElo "2253"]
[TimeControl "180+1"]
[EndTime "11:54:06 PST"]
[Termination "Shushik won by resignation"]

1. e4 {[%clk 0:03:00.9]} 1... e5 {[%clk 0:03:00.2]} 2. Nf3 {[%clk 0:02:59.7]}
2... Nc6 {[%clk 0:03:00.4]} 3. Bb5 {[%clk 0:02:59]} 3... Nf6 {[%clk 0:03:00.5]}
4. d3 {[%clk 0:02:58.3]} 4... d6 {[%clk 0:02:59.9]} 5. c3 {[%clk 0:02:57.8]}
5... g6 {[%clk 0:02:56.9]} 6. O-O {[%clk 0:02:56.3]} 6... Bg7 {[%clk 0:02:57]}
7. Re1 {[%clk 0:02:56]} 7... O-O {[%clk 0:02:56.9]} 8. Nbd2 {[%clk 0:02:54]}
8... a6 {[%clk 0:02:56.5]} 9. Ba4 {[%clk 0:02:51.8]} 9... b5 {[%clk 0:02:56.5]}
10. Bc2 {[%clk 0:02:51.1]} 10... d5 {[%clk 0:02:56.7]} 11. h3 {[%clk 0:02:44.5]}
11... h6 {[%clk 0:02:51.3]} 12. a4 {[%clk 0:02:44.6]} 12... b4 {[%clk
0:02:48.1]} 13. a5 {[%clk 0:02:44.8]} 13... dxe4 {[%clk 0:02:45]} 14. dxe4
{[%clk 0:02:44.6]} 14... Be6 {[%clk 0:02:36.1]} 15. Qe2 {[%clk 0:02:44.3]} 15...
Qe7 {[%clk 0:02:28.3]} 16. Nb3 {[%clk 0:02:38.6]} 16... Rfd8 {[%clk 0:02:20.9]}
17. Bd2 {[%clk 0:02:13.8]} 17... Nh5 {[%clk 0:02:03.1]} 18. Be3 {[%clk
0:02:10.4]} 18... Nf4 {[%clk 0:01:58.3]} 19. Qf1 {[%clk 0:02:09.8]} 19... Qf6
{[%clk 0:01:46.6]} 20. Nfd2 {[%clk 0:01:49.1]} 20... Qg5 {[%clk 0:01:29.4]} 21.
Kh2 {[%clk 0:01:40.4]} 21... Qe7 {[%clk 0:01:16.1]} 22. Bc5 {[%clk 0:01:35.8]}
22... Qg5 {[%clk 0:01:10.6]} 23. Nf3 {[%clk 0:01:33.6]} 23... Qf6 {[%clk
0:01:10.5]} 24. Nbd2 {[%clk 0:01:30.1]} 24... bxc3 {[%clk 0:01:08.1]} 25. bxc3
{[%clk 0:01:29.7]} 25... g5 {[%clk 0:01:07.8]} 26. Be3 {[%clk 0:01:20.2]} 26...
Qe7 {[%clk 0:00:57.7]} 27. Nb3 {[%clk 0:01:16.6]} 27... g4 {[%clk 0:00:54.6]}
28. hxg4 {[%clk 0:01:15.3]} 28... Bxg4 {[%clk 0:00:54.4]} 29. Nbd2 {[%clk
0:01:10.6]} 29... Qe6 {[%clk 0:00:49.9]} 30. Nh4 {[%clk 0:01:04.8]} 30... Qf6
{[%clk 0:00:46.7]} 31. g3 {[%clk 0:01:03.7]} 31... Ne6 {[%clk 0:00:42.8]} 32. f3
{[%clk 0:01:02.9]} 32... Bh5 {[%clk 0:00:42.5]} 33. Nf5 {[%clk 0:00:53.1]} 33...
Bg6 {[%clk 0:00:40.4]} 34. g4 {[%clk 0:00:52.2]} 34... Bxf5 {[%clk 0:00:39.8]}
35. exf5 {[%clk 0:00:49.9]} 35... Qh4+ {[%clk 0:00:37.1]} 36. Kg2 {[%clk
0:00:47.4]} 36... Nf4+ {[%clk 0:00:36.3]} 37. Bxf4 {[%clk 0:00:47.8]} 37... exf4
{[%clk 0:00:35.7]} 38. Ne4 {[%clk 0:00:48.4]} 38... Re8 {[%clk 0:00:32.3]} 39.
Qf2 {[%clk 0:00:46.8]} 39... Qd8 {[%clk 0:00:29.6]} 40. Red1 {[%clk 0:00:45.8]}
40... Qe7 {[%clk 0:00:29]} 41. Re1 {[%clk 0:00:44.7]} 41... Qd8 {[%clk
0:00:27.5]} 42. Rad1 {[%clk 0:00:43.5]} 42... Qb8 {[%clk 0:00:27.2]} 43. Qc5
{[%clk 0:00:42.5]} 43... Qb5 {[%clk 0:00:26.1]} 44. Qxb5 {[%clk 0:00:37]} 44...
axb5 {[%clk 0:00:25.7]} 45. f6 {[%clk 0:00:37.1]} 45... Bf8 {[%clk 0:00:25.8]}
46. Rd7 {[%clk 0:00:36.6]} 46... Rac8 {[%clk 0:00:25.6]} 47. Ra1 {[%clk
0:00:35.3]} 47... Ne5 {[%clk 0:00:25.5]} 48. Rdd1 {[%clk 0:00:29.9]} 48... Ra8
{[%clk 0:00:25.4]} 49. a6 {[%clk 0:00:30]} 49... c5 {[%clk 0:00:23.2]} 50. Rdb1
{[%clk 0:00:27.5]} 50... Reb8 {[%clk 0:00:22.5]} 51. Ra5 {[%clk 0:00:26.5]}
51... Rb6 {[%clk 0:00:21.8]} 52. a7 {[%clk 0:00:25.7]} 52... Rb7 {[%clk
0:00:21.6]} 53. Rbxb5 {[%clk 0:00:20]} 53... Rxb5 {[%clk 0:00:19.3]} 54. Rxb5
{[%clk 0:00:19.9]} 54... Rxa7 {[%clk 0:00:19.6]} 55. Bd1 {[%clk 0:00:14.2]}
55... Ra2+ {[%clk 0:00:18.8]} 56. Kf1 {[%clk 0:00:14.2]} 56... Ra1 {[%clk
0:00:19]} 57. Ke2 {[%clk 0:00:14.1]} 57... Ra2+ {[%clk 0:00:19.2]} 58. Ke1
{[%clk 0:00:12.1]} 58... Ra1 {[%clk 0:00:19.2]} 59. Kd2 {[%clk 0:00:12.7]} 59...
Ra2+ {[%clk 0:00:19.2]} 60. Kc1 {[%clk 0:00:12.8]} 60... Ra1+ {[%clk 0:00:19.5]}
61. Kc2 {[%clk 0:00:13.3]} 61... Ra2+ {[%clk 0:00:19.7]} 62. Kb3 {[%clk
0:00:13.4]} 62... Ra1 {[%clk 0:00:19.2]} 63. Be2 {[%clk 0:00:13.5]} 63... Re1
{[%clk 0:00:18.6]} 64. Bc4 {[%clk 0:00:11.6]} 64... Nxf3 {[%clk 0:00:17.7]} 65.
Rb7 {[%clk 0:00:11.2]} 65... Rb1+ {[%clk 0:00:17.4]} 66. Kc2 {[%clk 0:00:09.6]}
66... Rxb7 {[%clk 0:00:17.7]} 67. Bd5 {[%clk 0:00:09]} 67... Rd7 {[%clk
0:00:17.6]} 68. c4 {[%clk 0:00:08.6]} 68... Ng5 {[%clk 0:00:17.6]} 69. Kd3
{[%clk 0:00:09.5]} 69... Nxe4 {[%clk 0:00:16.8]} 70. Kxe4 {[%clk 0:00:10.4]}
70... Kh7 {[%clk 0:00:16.8]} 71. Kxf4 {[%clk 0:00:10.9]} 71... Kg6 {[%clk
0:00:16.2]} 72. Ke5 {[%clk 0:00:11.2]} 72... Kg5 {[%clk 0:00:15.8]} 73. Bf3
{[%clk 0:00:07.1]} 73... Rd4 {[%clk 0:00:15.7]} 74. Bd5 {[%clk 0:00:06.2]} 74...
Rxg4 {[%clk 0:00:15.1]} 75. Bxf7 {[%clk 0:00:06.9]} 75... Rf4 {[%clk 0:00:14.4]}
76. Bd5 {[%clk 0:00:06.6]} 76... Rxf6 {[%clk 0:00:14.3]} 77. Be6 {[%clk
0:00:05.1]} 77... h5 {[%clk 0:00:14.1]} 78. Bh3 {[%clk 0:00:04.7]} 78... h4
{[%clk 0:00:14.5]} 79. Bd7 {[%clk 0:00:03.5]} 79... Rf3 {[%clk 0:00:14.2]} 80.
Ke4 {[%clk 0:00:04.2]} 80... Rc3 {[%clk 0:00:13.1]} 81. Be6 {[%clk 0:00:04.5]}
81... h3 {[%clk 0:00:12.7]} 0-1

[Event "*** Titled Tuesday Blitz"]
[Site "Chess.com"]
[Date "2020.11.10"]
[Round "9"]
[White "NewBornNow"]
[Black "chito89"]
[Result "0-1"]
[WhiteElo "2649"]
[BlackElo "2838"]
[TimeControl "180+1"]
[EndTime "11:54:07 PST"]
[Termination "chito89 won by resignation"]

1. e4 {[%clk 0:03:00.5]} 1... c5 {[%clk 0:02:58.7]} 2. Nf3 {[%clk 0:03:00.1]}
2... e6 {[%clk 0:02:53.5]} 3. d3 {[%clk 0:02:59.1]} 3... Nc6 {[%clk 0:02:52]} 4.
g3 {[%clk 0:02:58.5]} 4... d5 {[%clk 0:02:49.2]} 5. Qe2 {[%clk 0:02:58.1]} 5...
Nge7 {[%clk 0:02:47.8]} 6. Bg2 {[%clk 0:02:58]} 6... g6 {[%clk 0:02:48.1]} 7.
O-O {[%clk 0:02:58.1]} 7... Bg7 {[%clk 0:02:48.6]} 8. c3 {[%clk 0:02:56.9]} 8...
b6 {[%clk 0:02:46.6]} 9. Re1 {[%clk 0:02:53.1]} 9... h6 {[%clk 0:02:40.1]} 10.
h4 {[%clk 0:02:52.3]} 10... a5 {[%clk 0:02:39.5]} 11. a4 {[%clk 0:02:50.9]}
11... Ba6 {[%clk 0:02:34.2]} 12. e5 {[%clk 0:02:50.4]} 12... Qc7 {[%clk
0:02:31.7]} 13. Na3 {[%clk 0:02:48.8]} 13... Rd8 {[%clk 0:02:17.1]} 14. Nb5
{[%clk 0:02:45.7]} 14... Bxb5 {[%clk 0:02:14.3]} 15. axb5 {[%clk 0:02:45]} 15...
Nb8 {[%clk 0:02:13.2]} 16. Bf4 {[%clk 0:02:33.5]} 16... Nd7 {[%clk 0:02:07.5]}
17. Bh3 {[%clk 0:02:29]} 17... Nf5 {[%clk 0:01:56.4]} 18. h5 {[%clk 0:02:12.2]}
18... g5 {[%clk 0:01:52.1]} 19. Bd2 {[%clk 0:02:11.6]} 19... Ne7 {[%clk
0:01:45.9]} 20. d4 {[%clk 0:02:00.1]} 20... c4 {[%clk 0:01:43.2]} 21. Qd1 {[%clk
0:01:56.9]} 21... Nc8 {[%clk 0:01:36.7]} 22. Qc2 {[%clk 0:01:54.5]} 22... Na7
{[%clk 0:01:34.9]} 23. Bxe6 {[%clk 0:01:47.2]} 23... fxe6 {[%clk 0:01:32.7]} 24.
Qg6+ {[%clk 0:01:40.8]} 24... Kf8 {[%clk 0:01:33.1]} 25. Bxg5 {[%clk 0:01:35.9]}
25... Re8 {[%clk 0:01:28.7]} 26. Bh4 {[%clk 0:01:24.3]} 26... Nxb5 {[%clk
0:01:04.2]} 27. Re3 {[%clk 0:01:22]} 27... Nb8 {[%clk 0:00:47]} 28. Ng5 {[%clk
0:01:17.4]} 28... hxg5 {[%clk 0:00:22.9]} 29. Rf3+ {[%clk 0:01:15.2]} 29... Ke7
{[%clk 0:00:23.8]} 30. Rf7+ {[%clk 0:00:50]} 30... Kd8 {[%clk 0:00:24.3]} 31.
Bxg5+ {[%clk 0:00:48.6]} 31... Kc8 {[%clk 0:00:17.9]} 32. Rxc7+ {[%clk
0:00:46.3]} 32... Nxc7 {[%clk 0:00:18.8]} 33. f4 {[%clk 0:00:28.5]} 33... Reg8
{[%clk 0:00:14.2]} 34. Qf7 {[%clk 0:00:25]} 34... Nd7 {[%clk 0:00:14.8]} 35. Kf2
{[%clk 0:00:17.7]} 35... Bf8 {[%clk 0:00:14.6]} 36. h6 {[%clk 0:00:10]} 36...
Nb8 {[%clk 0:00:05.1]} 37. Rh1 {[%clk 0:00:09.9]} 37... Nc6 {[%clk 0:00:04.9]}
38. Bf6 {[%clk 0:00:10.1]} 38... Nd8 {[%clk 0:00:04.6]} 39. Qh5 {[%clk
0:00:09.4]} 39... Rh7 {[%clk 0:00:04.3]} 40. Bg5 {[%clk 0:00:08.8]} 40... Nf7
{[%clk 0:00:04.3]} 41. Kf3 {[%clk 0:00:07.4]} 41... Kd7 {[%clk 0:00:04.4]} 42.
Qg4 {[%clk 0:00:06.9]} 42... Bxh6 {[%clk 0:00:02.9]} 43. Rh5 {[%clk 0:00:05.8]}
43... Nxg5+ {[%clk 0:00:02.8]} 44. fxg5 {[%clk 0:00:06]} 44... Rf7+ {[%clk
0:00:03.5]} 45. Kg2 {[%clk 0:00:06.2]} 45... Bf8 {[%clk 0:00:04.4]} 46. g6
{[%clk 0:00:06.4]} 46... Rfg7 {[%clk 0:00:04.8]} 47. Rh7 {[%clk 0:00:07.3]}
47... Be7 {[%clk 0:00:05.2]} 48. Rxg7 {[%clk 0:00:07.2]} 48... Rxg7 {[%clk
0:00:06.1]} 49. Qh5 {[%clk 0:00:07.3]} 49... Ne8 {[%clk 0:00:07]} 50. Qh6 {[%clk
0:00:07.6]} 50... b5 {[%clk 0:00:07.5]} 51. Qh5 {[%clk 0:00:06.8]} 51... b4
{[%clk 0:00:07.9]} 52. Kf1 {[%clk 0:00:07.2]} 52... b3 {[%clk 0:00:06.9]} 53.
Ke2 {[%clk 0:00:07.1]} 53... a4 {[%clk 0:00:07.8]} 54. Kd1 {[%clk 0:00:07.3]}
54... Rg8 {[%clk 0:00:06.6]} 55. Qh7 {[%clk 0:00:07.3]} 55... Rg7 {[%clk
0:00:06.9]} 56. Qh6 {[%clk 0:00:07.6]} 56... a3 {[%clk 0:00:07.8]} 57. bxa3
{[%clk 0:00:07.5]} 57... Bxa3 {[%clk 0:00:08.7]} 58. Kd2 {[%clk 0:00:07.7]}
58... Kc6 {[%clk 0:00:07.7]} 59. g4 {[%clk 0:00:07.8]} 59... Rb7 {[%clk
0:00:06.4]} 60. Qh8 {[%clk 0:00:07.7]} 60... Kd7 {[%clk 0:00:06.2]} 61. Qh7+
{[%clk 0:00:06.8]} 61... Be7 {[%clk 0:00:05.3]} 62. Qh1 {[%clk 0:00:07.7]} 62...
b2 {[%clk 0:00:05.5]} 63. Qb1 {[%clk 0:00:07.1]} 63... Ng7 {[%clk 0:00:05.7]}
64. Kc2 {[%clk 0:00:07.3]} 64... Ba3 {[%clk 0:00:06.2]} 65. Kd1 {[%clk
0:00:06.8]} 65... Rb3 {[%clk 0:00:06]} 66. Kc2 {[%clk 0:00:07]} 66... Ke7 {[%clk
0:00:06.5]} 67. g5 {[%clk 0:00:06.9]} 67... Kd7 {[%clk 0:00:05.6]} 68. Kd2
{[%clk 0:00:07.1]} 68... Nf5 {[%clk 0:00:05.9]} 69. Kc2 {[%clk 0:00:07.2]} 69...
Ke7 {[%clk 0:00:06.4]} 70. Kd2 {[%clk 0:00:07.3]} 70... Kf8 {[%clk 0:00:06.9]}
71. Qh1 {[%clk 0:00:05.5]} 71... b1=Q {[%clk 0:00:06.6]} 72. Qh8+ {[%clk
0:00:04.3]} 72... Ke7 {[%clk 0:00:07.1]} 73. Qh7+ {[%clk 0:00:04.4]} 73... Kd8
{[%clk 0:00:07.7]} 74. Qg8+ {[%clk 0:00:05.3]} 74... Kd7 {[%clk 0:00:07.9]} 75.
Qxe6+ {[%clk 0:00:06.2]} 75... Kxe6 {[%clk 0:00:07.7]} 0-1

[Event "*** Titled Tuesday Blitz"]
[Site "Chess.com"]
[Date "2020.11.10"]
[Round "9"]
[White "mbojan"]
[Black "Anton_Demchenko"]
[Result "1-0"]
[WhiteElo "2691"]
[BlackElo "2828"]
[TimeControl "180+1"]
[EndTime "11:54:43 PST"]
[Termination "mbojan won by checkmate"]

1. g3 {[%clk 0:03:00.9]} 1... g6 {[%clk 0:02:58.5]} 2. Bg2 {[%clk 0:03:01]} 2...
Bg7 {[%clk 0:02:59.3]} 3. d3 {[%clk 0:03:00.9]} 3... Nf6 {[%clk 0:02:59]} 4. e4
{[%clk 0:03:00.2]} 4... d6 {[%clk 0:02:59]} 5. f4 {[%clk 0:02:55.9]} 5... c5
{[%clk 0:02:58.6]} 6. Nf3 {[%clk 0:02:55.8]} 6... Nc6 {[%clk 0:02:59]} 7. O-O
{[%clk 0:02:54.9]} 7... O-O {[%clk 0:02:59.1]} 8. h3 {[%clk 0:02:55.1]} 8... c4
{[%clk 0:02:47.2]} 9. Nc3 {[%clk 0:02:50.1]} 9... cxd3 {[%clk 0:02:47.1]} 10.
cxd3 {[%clk 0:02:51]} 10... b6 {[%clk 0:02:30.8]} 11. Be3 {[%clk 0:02:40.6]}
11... Bb7 {[%clk 0:02:23.2]} 12. Qd2 {[%clk 0:02:29.9]} 12... Rb8 {[%clk
0:01:50.9]} 13. Rac1 {[%clk 0:02:28.6]} 13... Nd7 {[%clk 0:01:33.3]} 14. Ne2
{[%clk 0:02:26.7]} 14... a5 {[%clk 0:01:26.5]} 15. f5 {[%clk 0:01:57.4]} 15...
Nce5 {[%clk 0:01:12.8]} 16. Bh6 {[%clk 0:01:36.8]} 16... Ba6 {[%clk 0:01:06.9]}
17. Bxg7 {[%clk 0:01:33.7]} 17... Kxg7 {[%clk 0:01:07.8]} 18. Nf4 {[%clk
0:01:33.1]} 18... Nxf3+ {[%clk 0:00:59.6]} 19. Bxf3 {[%clk 0:01:14.7]} 19... Rc8
{[%clk 0:00:55.5]} 20. Qe3 {[%clk 0:01:11.7]} 20... Rc5 {[%clk 0:00:44.1]} 21.
Be2 {[%clk 0:00:46.6]} 21... Bb7 {[%clk 0:00:41.5]} 22. a3 {[%clk 0:00:41.5]}
22... Nf6 {[%clk 0:00:29.8]} 23. b4 {[%clk 0:00:35.8]} 23... axb4 {[%clk
0:00:29.6]} 24. axb4 {[%clk 0:00:36.7]} 24... Rxc1 {[%clk 0:00:25.5]} 25. Rxc1
{[%clk 0:00:37.6]} 25... gxf5 {[%clk 0:00:25.7]} 26. exf5 {[%clk 0:00:36.2]}
26... Kh8 {[%clk 0:00:26.2]} 27. Kh2 {[%clk 0:00:34.8]} 27... Rg8 {[%clk
0:00:26.4]} 28. Qd4 {[%clk 0:00:26.5]} 28... Rg7 {[%clk 0:00:13.4]} 29. Re1
{[%clk 0:00:20.9]} 29... h6 {[%clk 0:00:12.7]} 30. Bf1 {[%clk 0:00:20.6]} 30...
Kh7 {[%clk 0:00:12.7]} 31. Qe3 {[%clk 0:00:20.4]} 31... Ng8 {[%clk 0:00:06.9]}
32. h4 {[%clk 0:00:18.3]} 32... Nf6 {[%clk 0:00:05.3]} 33. Bh3 {[%clk
0:00:17.4]} 33... Qc7 {[%clk 0:00:03.8]} 34. Qxe7 {[%clk 0:00:15.5]} 34... Qxe7
{[%clk 0:00:03.2]} 35. Rxe7 {[%clk 0:00:16.4]} 35... Bc6 {[%clk 0:00:03.8]} 36.
Bg2 {[%clk 0:00:13.2]} 36... Ng4+ {[%clk 0:00:03.1]} 37. Kg1 {[%clk 0:00:13.7]}
37... Bxg2 {[%clk 0:00:02.9]} 38. Kxg2 {[%clk 0:00:14.6]} 38... Nf6 {[%clk
0:00:03.1]} 39. Kf3 {[%clk 0:00:13.9]} 39... h5 {[%clk 0:00:03.1]} 40. Rb7
{[%clk 0:00:13.2]} 40... Ng4 {[%clk 0:00:02.6]} 41. Rxb6 {[%clk 0:00:12.6]}
41... Ne5+ {[%clk 0:00:03.3]} 42. Kg2 {[%clk 0:00:11.8]} 42... Rg8 {[%clk
0:00:03]} 43. Rxd6 {[%clk 0:00:11.2]} 43... Rb8 {[%clk 0:00:03.2]} 44. Rd4
{[%clk 0:00:10.8]} 44... Rc8 {[%clk 0:00:03.2]} 45. b5 {[%clk 0:00:10.5]} 45...
Rc2+ {[%clk 0:00:03.4]} 46. Kf1 {[%clk 0:00:11]} 46... Rb2 {[%clk 0:00:03]} 47.
Rd5 {[%clk 0:00:10.7]} 47... Ng4 {[%clk 0:00:03.5]} 48. Rd7 {[%clk 0:00:08.7]}
48... Kg8 {[%clk 0:00:02.6]} 49. Nxh5 {[%clk 0:00:08.8]} 49... Ne3+ {[%clk
0:00:02.8]} 50. Ke1 {[%clk 0:00:09.3]} 50... Nc2+ {[%clk 0:00:02]} 51. Kd1
{[%clk 0:00:09.5]} 51... Ne3+ {[%clk 0:00:02.1]} 52. Kc1 {[%clk 0:00:09.7]}
52... Rc2+ {[%clk 0:00:02.6]} 53. Kb1 {[%clk 0:00:10.3]} 53... Rc3 {[%clk
0:00:03.2]} 54. Nf6+ {[%clk 0:00:10.5]} 54... Kg7 {[%clk 0:00:03.1]} 55. Nh5+
{[%clk 0:00:10.2]} 55... Kf8 {[%clk 0:00:03.5]} 56. f6 {[%clk 0:00:09.7]} 56...
Ke8 {[%clk 0:00:03.2]} 57. Rb7 {[%clk 0:00:09.1]} 57... Rb3+ {[%clk 0:00:02.9]}
58. Kc1 {[%clk 0:00:09.5]} 58... Rb4 {[%clk 0:00:02.9]} 59. Ng7+ {[%clk
0:00:09.5]} 59... Kd8 {[%clk 0:00:03.6]} 60. Kd2 {[%clk 0:00:10.2]} 60... Nd5
{[%clk 0:00:03.4]} 61. Nf5 {[%clk 0:00:09.8]} 61... Nxf6 {[%clk 0:00:03.1]} 62.
Rxf7 {[%clk 0:00:08.2]} 62... Nd5 {[%clk 0:00:02.9]} 63. Rf8+ {[%clk 0:00:07.5]}
63... Kd7 {[%clk 0:00:03]} 64. h5 {[%clk 0:00:07.4]} 64... Rb2+ {[%clk 0:00:03]}
65. Ke1 {[%clk 0:00:08]} 65... Rh2 {[%clk 0:00:03]} 66. g4 {[%clk 0:00:07.9]}
66... Ke6 {[%clk 0:00:03]} 67. h6 {[%clk 0:00:06.9]} 67... Nf4 {[%clk
0:00:02.6]} 68. Ng7+ {[%clk 0:00:07.1]} 68... Ke5 {[%clk 0:00:02.7]} 69. Rf5+
{[%clk 0:00:07.3]} 69... Kd4 {[%clk 0:00:03.2]} 70. Rxf4+ {[%clk 0:00:08.2]}
70... Ke3 {[%clk 0:00:03.8]} 71. Re4+ {[%clk 0:00:08.4]} 71... Kxd3 {[%clk
0:00:04.5]} 72. Re6 {[%clk 0:00:09.1]} 72... Kc4 {[%clk 0:00:03.7]} 73. Nf5
{[%clk 0:00:09.1]} 73... Kd5 {[%clk 0:00:04.6]} 74. Rd6+ {[%clk 0:00:08.7]}
74... Ke5 {[%clk 0:00:05.2]} 75. Kf1 {[%clk 0:00:09.3]} 75... Kf4 {[%clk
0:00:05.2]} 76. Kg1 {[%clk 0:00:09.8]} 76... Rh3 {[%clk 0:00:05.5]} 77. Kg2
{[%clk 0:00:10.1]} 77... Rb3 {[%clk 0:00:05.2]} 78. Rd4+ {[%clk 0:00:09.9]}
78... Kg5 {[%clk 0:00:05]} 79. Kf2 {[%clk 0:00:10.5]} 79... Rb2+ {[%clk
0:00:05]} 80. Ke3 {[%clk 0:00:10.6]} 80... Rxb5 {[%clk 0:00:05.9]} 81. h7 {[%clk
0:00:09.4]} 81... Rb8 {[%clk 0:00:05.9]} 82. Rd1 {[%clk 0:00:09]} 82... Rh8
{[%clk 0:00:04.8]} 83. Rh1 {[%clk 0:00:08.6]} 83... Kxg4 {[%clk 0:00:05.2]} 84.
Ke4 {[%clk 0:00:08.1]} 84... Kg5 {[%clk 0:00:04]} 85. Ke5 {[%clk 0:00:08.3]}
85... Kg6 {[%clk 0:00:04.4]} 86. Ne7+ {[%clk 0:00:07.1]} 86... Kg7 {[%clk
0:00:04.1]} 87. Nf5+ {[%clk 0:00:04.5]} 87... Kg6 {[%clk 0:00:04.5]} 88. Rh6+
{[%clk 0:00:04.6]} 88... Kg5 {[%clk 0:00:05]} 89. Ke6 {[%clk 0:00:03.4]} 89...
Re8+ {[%clk 0:00:03.3]} 90. Kf7 {[%clk 0:00:03.9]} 90... Rh8 {[%clk 0:00:03.6]}
91. Kg7 {[%clk 0:00:04.4]} 91... Ra8 {[%clk 0:00:03.6]} 92. h8=Q {[%clk
0:00:04.9]} 92... Ra7+ {[%clk 0:00:04.1]} 93. Kf8 {[%clk 0:00:05.4]} 93... Ra8+
{[%clk 0:00:04.5]} 94. Kf7 {[%clk 0:00:06]} 94... Ra7+ {[%clk 0:00:05]} 95. Ne7
{[%clk 0:00:06.1]} 95... Kf4 {[%clk 0:00:05.1]} 96. Qf6+ {[%clk 0:00:06.1]}
96... Ke3 {[%clk 0:00:05.2]} 97. Rh3+ {[%clk 0:00:06.4]} 97... Kd2 {[%clk
0:00:05.2]} 98. Qf2+ {[%clk 0:00:06.6]} 98... Kd1 {[%clk 0:00:05.5]} 99. Rh1#
{[%clk 0:00:07.5]} 1-0

[Event "*** Titled Tuesday Blitz"]
[Site "Chess.com"]
[Date "2020.11.10"]
[Round "10"]
[White "Alomaterapia"]
[Black "ecwinslow"]
[Result "1-0"]
[WhiteElo "2438"]
[BlackElo "2229"]
[TimeControl "180+1"]
[EndTime "11:55:56 PST"]
[Termination "Alomaterapia won by resignation"]

1. e4 {[%clk 0:03:00.9]} 1... c5 {[%clk 0:02:58.3]} 2. c3 {[%clk 0:02:59.9]}
2... Nf6 {[%clk 0:02:56.7]} 3. e5 {[%clk 0:03:00.3]} 3... Nd5 {[%clk 0:02:55.8]}
4. Nf3 {[%clk 0:03:01]} 4... d6 {[%clk 0:02:54.7]} 5. d4 {[%clk 0:03:01.5]} 5...
cxd4 {[%clk 0:02:54.1]} 6. cxd4 {[%clk 0:03:01.6]} 6... Nc6 {[%clk 0:02:52.5]}
7. Bc4 {[%clk 0:03:00.7]} 7... dxe5 {[%clk 0:02:52]} 8. dxe5 {[%clk 0:03:00.4]}
8... Ndb4 {[%clk 0:02:51.4]} 9. Qb3 {[%clk 0:02:59.4]} 9... Na5 {[%clk
0:02:49.3]} 10. Bb5+ {[%clk 0:02:59.6]} 10... Bd7 {[%clk 0:02:49.1]} 11. Qxb4
{[%clk 0:02:57.2]} 1-0

[Event "*** Titled Tuesday Blitz"]
[Site "Chess.com"]
[Date "2020.11.10"]
[Round "10"]
[White "Chernov_Mikhail"]
[Black "m_ezat"]
[Result "0-1"]
[WhiteElo "2342"]
[BlackElo "2468"]
[TimeControl "180+1"]
[EndTime "11:58:02 PST"]
[Termination "m_ezat won by resignation"]

1. e4 {[%clk 0:03:00.9]} 1... c6 {[%clk 0:02:57.8]} 2. d4 {[%clk 0:03:01]} 2...
d5 {[%clk 0:02:58.2]} 3. e5 {[%clk 0:03:01.6]} 3... c5 {[%clk 0:02:57.9]} 4.
dxc5 {[%clk 0:03:01.5]} 4... Nc6 {[%clk 0:02:58.1]} 5. Nf3 {[%clk 0:03:01]} 5...
Bg4 {[%clk 0:02:58.6]} 6. c3 {[%clk 0:03:01.3]} 6... e6 {[%clk 0:02:57]} 7. Be3
{[%clk 0:02:59.3]} 7... Nge7 {[%clk 0:02:53.7]} 8. b4 {[%clk 0:02:44.6]} 8...
Nf5 {[%clk 0:02:51.7]} 9. Bd4 {[%clk 0:02:41.4]} 9... a5 {[%clk 0:02:48.4]} 10.
b5 {[%clk 0:02:35.3]} 10... Ncxd4 {[%clk 0:02:45.6]} 11. cxd4 {[%clk 0:02:36.2]}
11... Bxf3 {[%clk 0:02:45]} 12. gxf3 {[%clk 0:02:37.1]} 12... Qh4 {[%clk
0:02:45.1]} 13. b6 {[%clk 0:02:22.2]} 13... Nxd4 {[%clk 0:02:36.9]} 14. Bg2
{[%clk 0:02:13.3]} 14... Bxc5 {[%clk 0:02:29.2]} 15. O-O {[%clk 0:02:11.8]}
15... O-O {[%clk 0:02:27.8]} 16. Nc3 {[%clk 0:02:07.5]} 16... Bxb6 {[%clk
0:02:22]} 17. Rb1 {[%clk 0:02:06.4]} 17... Bc7 {[%clk 0:02:21.8]} 18. Ne2 {[%clk
0:01:43.9]} 18... Bxe5 {[%clk 0:02:11.8]} 0-1

[Event "*** Titled Tuesday Blitz"]
[Site "Chess.com"]
[Date "2020.11.10"]
[Round "10"]
[White "Zarikovs1999"]
[Black "Lupul_Cenusiu"]
[Result "1-0"]
[WhiteElo "2387"]
[BlackElo "2517"]
[TimeControl "180+1"]
[EndTime "11:58:09 PST"]
[Termination "Zarikovs1999 won by resignation"]

1. e4 {[%clk 0:03:00.9]} 1... c5 {[%clk 0:02:31.4]} 2. Nf3 {[%clk 0:03:00.3]}
2... Nc6 {[%clk 0:02:29.9]} 3. d4 {[%clk 0:03:00.8]} 3... cxd4 {[%clk
0:02:29.3]} 4. Nxd4 {[%clk 0:03:01.7]} 4... Nf6 {[%clk 0:02:28.9]} 5. Nc3 {[%clk
0:03:01.8]} 5... e6 {[%clk 0:02:29.3]} 6. Ndb5 {[%clk 0:02:45.3]} 6... Bb4
{[%clk 0:02:28.5]} 7. a3 {[%clk 0:02:45.4]} 7... Bxc3+ {[%clk 0:02:27.6]} 8.
Nxc3 {[%clk 0:02:46.3]} 8... d5 {[%clk 0:02:28]} 9. exd5 {[%clk 0:02:41.4]} 9...
exd5 {[%clk 0:02:28.9]} 10. Bd3 {[%clk 0:02:40.3]} 10... O-O {[%clk 0:02:29.3]}
11. O-O {[%clk 0:02:40.3]} 11... d4 {[%clk 0:02:27.4]} 12. Ne4 {[%clk
0:02:37.8]} 12... Nxe4 {[%clk 0:02:26.3]} 13. Bxe4 {[%clk 0:02:38.7]} 13... Re8
{[%clk 0:02:25.9]} 14. Bd3 {[%clk 0:02:33]} 14... Qh4 {[%clk 0:02:22.6]} 15. Qf3
{[%clk 0:02:31.6]} 15... Bg4 {[%clk 0:02:15.9]} 16. Qf4 {[%clk 0:02:28.7]} 16...
Qh5 {[%clk 0:02:15.9]} 17. f3 {[%clk 0:02:15.1]} 17... Be6 {[%clk 0:02:13.3]}
18. Bd2 {[%clk 0:02:14.5]} 18... Ne5 {[%clk 0:02:06.7]} 19. Be4 {[%clk
0:02:06.8]} 19... Ng6 {[%clk 0:02:06]} 20. Qd6 {[%clk 0:02:00.8]} 20... Rad8
{[%clk 0:02:03.6]} 21. Qc5 {[%clk 0:01:59.6]} 21... b6 {[%clk 0:02:02]} 22. Qxh5
{[%clk 0:01:59]} 1-0